{"text_format":"1","workbook":"xlsx","n_sheets":2,"sheets":["Conversiones de moneda","Tasas de conversión"],"not_rendered":{"charts":0,"images":1,"macros":1,"external_links":0,"defined_names":7,"comments":0,"pivot_tables":0},"unopened":[],"bounds":{"document_bytes":16777216,"sheet_cells":100000,"rows_first":2000,"rows_last":500,"rows_between":2000,"halvings":0,"cell_chars":16384,"cell_head_chars":4096},"cells_cut":0,"cells_raw":0,"read":"whole","date_system":"1900"}

{"sheet":"Conversiones de moneda","index":0,"n_rows":10,"n_cols":5,"rows_kept":10,"cut":false,"hidden":false,"merged":[]}
[]
[]
[]
[]
[null,null,null,41,6000]
[]
[]
[]
[]
[null,null,null,27,{"$f":"IFERROR(IF(OR(FromCurrency=0,ToCurrency=0),\"\",FromAmount/OFFSET(Divisas,FromCurrency-1,3,1,1)*OFFSET(Divisas,ToCurrency-1,3,1,1)),\"\")","v":35754}]

{"sheet":"Tasas de conversión","index":1,"n_rows":59,"n_cols":5,"rows_kept":59,"cut":false,"hidden":false,"merged":[]}
["Tasas de conversión"]
["La fecha de esta hoja es de una consulta web de MSN Money. Se actualiza cuando se hace clic en el botón Actualizar tasas de conversión en la hoja Conversiones de moneda."]
[null,null,"Currency Rates Provided by MSN Money"]
[null,null,"Click here to visit MSN Money"]
[]
[null,"Nombre de lista","Nombre","En dólares estadounidenses (USD)","Por dólares estadounidenses (USD)"]
[null,{"$f":"IF(ISERROR(FIND(\" a dólar de EE. UU.\",C7)),C7,LEFT(C7,FIND(\" a dólar de EE. UU.\",C7)-1))","v":"Peso argentino"},"Peso argentino a dólar de EE. UU.",0.22427,4.4589999999999996]
[null,"Dólar australiano","Dólar australiano a dólar de EE. UU.",0.98541999999999996,1.0149999999999999]
[null,"Dinar bahreiní","Dinar bahreiní a dólar de EE. UU.",2.6482999999999999,0.378]
[null,"Peso boliviano","Peso boliviano a dólar de EE. UU.",0.14451,6.92]
[null,"Real brasileño","Real brasileño a dólar de EE. UU.",0.49278,2.0289999999999999]
[null,"Libra británica","Libra británica a dólar de EE. UU.",1.5828,0.63200000000000001]
[null,"Dólar canadiense","Dólar canadiense a dólar de EE. UU.",0.98090999999999995,1.0189999999999999]
[null,"Peso chileno","Peso chileno a dólar de EE. UU.",1.98E-3,504.8]
[null,"Yuan chino","Yuan chino a dólar de EE. UU.",0.15798000000000001,6.33]
[null,"Peso colombiano","Peso colombiano a dólar de EE. UU.",5.5000000000000003E-4,1817]
[null,{"$f":"IF(ISERROR(FIND(\" a dólar de EE. UU.\",C17)),C17,LEFT(C17,FIND(\" a dólar de EE. UU.\",C17)-1))","v":"Corona checa"},"Corona checa a dólar de EE. UU.",5.0479999999999997E-2,19.811]
[null,{"$f":"IF(ISERROR(FIND(\" a dólar de EE. UU.\",C18)),C18,LEFT(C18,FIND(\" a dólar de EE. UU.\",C18)-1))","v":"Corona danesa"},"Corona danesa a dólar de EE. UU.",0.17211000000000001,5.81]
[null,"Euro","Euro a dólar de EE. UU.",1.2788999999999999,0.78200000000000003]
[null,"Libra egipcia*","Libra egipcia* a dólar de EE. UU.",0.16553000000000001,6.0410000000000004]
[null,"Dólar de Hong Kong","Dólar de Hong Kong a dólar de EE. UU.",0.12877,7.766]
[null,"Florín húngaro","Florín húngaro a dólar de EE. UU.",4.2900000000000004E-3,233.1]
[null,"Rupia india","Rupia india a dólar de EE. UU.",1.8290000000000001E-2,54.67]
[null,"Rupia indonesa","Rupia indonesa a dólar de EE. UU.",1.1E-4,9251]
[null,"Yen japonés","Yen japonés a dólar de EE. UU.",1.2630000000000001E-2,79.209999999999994]
[null,"Dinar jordano","Dinar jordano a dólar de EE. UU.",1.4065000000000001,0.71099999999999997]
[null,"Chelín keniano","Chelín keniano a dólar de EE. UU.",1.184E-2,84.45]
[null,"Won de Cora del Sur","Won de Cora del Sur a dólar de EE. UU.",8.5999999999999998E-4,1168]
[null,"Dinar kuwaití","Dinar kuwaití a dólar de EE. UU.",3.5790999999999999,0.27900000000000003]
[null,"Dirham marroquí","Dirham marroquí a dólar de EE. UU.",0.11519,8.6820000000000004]
[null,"Ringgit malayo","Ringgit malayo a dólar de EE. UU.",0.31907999999999997,3.1339999999999999]
[null,"Peso mexicano","Peso mexicano a dólar de EE. UU.",7.2569999999999996E-2,13.779]
[null,"Corona noruega","Corona noruega a dólar de EE. UU.",0.16782,5.9589999999999996]
[null,"Rial omaní","Rial omaní a dólar de EE. UU.",2.5973999999999999,0.38500000000000001]
[null,"Nuevo Sol peruano","Nuevo Sol peruano a dólar de EE. UU.",0.37411,2.673]
[null,"Peso filipino","Peso filipino a dólar de EE. UU.",2.3130000000000001E-2,43.24]
[null,"Rupia paquistaní","Rupia paquistaní a dólar de EE. UU.",1.093E-2,91.49]
[null,"Riyal de Arabia Saudí","Riyal de Arabia Saudí a dólar de EE. UU.",0.2666,3.7509999999999999]
[null,"Dólar de Singapur","Dólar de Singapur a dólar de EE. UU.",0.78652,1.2709999999999999]
[null,"Rand sudafricano","Rand sudafricano a dólar de EE. UU.",0.12052,8.2970000000000006]
[null,"Corona sueca","Corona sueca a dólar de EE. UU.",0.14004,7.141]
[null,"Franco suizo","Franco suizo a dólar de EE. UU.",1.0649999999999999,0.93899999999999995]
[null,"Dólar de Taiwán","Dólar de Taiwán a dólar de EE. UU.",3.3829999999999999E-2,29.559000000000001]
[null,"Baht tailandés","Baht tailandés a dólar de EE. UU.",3.193E-2,31.32]
[null,"Dinar tunecino","Dinar tunecino a dólar de EE. UU.",0.63366999999999996,1.5780000000000001]
[null,"Dirham EAU","Dirham EAU a dólar de EE. UU.",0.27221000000000001,3.6739999999999999]
[null,"Dólar de Estados Unidos","Dólar de Estados Unidos",1,1]
[null,"Bolívar venezolano","Bolívar venezolano a dólar de EE. UU.",0.23282,4.2949999999999999]
[]
[]
[]
[null,null,"MSN Money",null,"Actualización de Microsoft Office"]
[null,null,"Descubra las herramientas, las columnas y las demás características de Investor.",null,"Conseguir lo último de Microsoft Office"]
[null,null,"Privacidad"]
[null,null,"Legal"]
[null,null,"Anunciar"]
[null,null,"MSN Worldwide"]
[null,null,"Acerca de nuestros anuncios"]
[null,null,"© 2012 Microsoft "]